[Event "Italian-ch Teams-B 2022"]
[Site "Montesilvano"]
[Date "2022.04.22"]
[Round "5.3"]
[White "Podetti, Davide"]
[Black "D'Amore, Carlo"]
[Result "1-0"]
[ECO "C67"]
[WhiteElo "2223"]
[BlackElo "2406"]
[Annotator "TA"]
[PlyCount "69"]
[EventDate "2022.04.19"]
[EventType "team-tourn"]
[EventCountry "ITA"]
[SourceTitle "playchess.com"]
[Source "ChessBase"]
[SourceQuality "1"]
[TimeControl "40/5400+30:1800+30"]

{[%evp 12,69,18,17,26,25,28,33,43,39,40,24,32,18,22,17,100,108,102,96,183,103,109,99,97,101,102,93,129,119,126,118,123,120,152,120,122,136,123,116,136,143,129,84,110,108,108,104,104,114,208,209,412,408,616,611,595,587,29991,29992]} 1. e4 {[%emt 0:00:04]} e5 {[%emt 0:00:09]} 2. Nf3 {[%emt 0:00:06]} Nc6 {[%emt 0:00:07]} 3. Bb5 {[%emt 0:00:13]} Nf6 {[%emt 0:01:04][%cal Bg8f6,Bf6e4,Be4d6,Bd6f5][%mdl 32]} 4. O-O {[%emt 0:00:14]} Nxe4 {[%emt 0:00:12]} 5. Re1 {[%emt 0:00:50]} Nd6 {[%emt 0:00:32]} 6. Nxe5 {[%emt 0:00:53]} Be7 {[%emt 0:00:19]} 7. Bf1 {[%emt 0:01:12]} Nf5 {[%emt 0:00:31] C67: Ruy Lopez: Berlin Defence: 4 0-0 Nxe4.} 8. Nf3 {[%emt 0:00:28]} O-O {[%emt 0:00:58]} 9. d4 {[%emt 0:00:05]} d5 {[%emt 0:00:25] White is slightly better.} 10. c3 {[%emt 0:05:24]} Bd6 {[%emt 0:02:50]} 11. Bd3 {[%emt 0:03:34]} Nh4 {[%emt 0:01:21] [#]} 12. Nxh4 $146 {[%emt 0:17:03]} ({Predecessor:} 12. Ng5 Bf5 13. Bxf5 Nxf5 14. Qd3 Re8 15. Rxe8+ Qxe8 16. Nd2 g6 17. Nf1 f6 18. Nf3 {1-0 (92) Hovhannisyan,R (2599)-Kabanov,N (2489) Kazan 2015}) 12... Qxh4 {[%emt 0:00:33]} 13. g3 {[%emt 0:00:28]} Qf6 {[%emt 0:01:15]} (13... Qg4 $11) 14. Qh5 $16 {[%emt 0:01:14][%csl Gd3,LRd5,LRh7][%cal Rh5h7] [#]} h6 {[%emt 0:02:16]} 15. Qxd5 {[%emt 0:06:05] And now Qe4 would win.} Bd7 {[%emt 0:00:19]} (15... Ne7 $16 {was called for.} 16. Qg2 (16. Qe4 Bf5 $16) 16... Bf5) 16. Be3 {[%emt 0:04:37]} ({White should play} 16. Qe4 $18 {[%csl Gd3][%cal Re4h7]} g6 17. Be3 (17. Bxh6 $2 Rfe8 $19)) 16... Ne7 {[%emt 0:05:44]} 17. Qg2 {[%emt 0:00:44]} ({Not} 17. Qxb7 $2 Bc6 18. Qa6 Qf3 $19) 17... Bc6 {[%emt 0:00:43]} 18. Be4 {[%emt 0:00:14]} Bxe4 {[%emt 0:00:10]} 19. Qxe4 {[%emt 0:00:04]} c6 {[%emt 0:00:50]} 20. Bf4 {[%emt 0:03:07]} Nd5 {[%emt 0:24:54][%cal Rd5f4]} 21. Bxd6 {[%emt 0:01:31]} Qxd6 {[%emt 0:00:04]} 22. Nd2 {[%emt 0:00:45][%cal Bb1d2,Bd2f3,Bf3e5,Be5g4,Bg4e3,Be3f5,Bf5e7][%mdl 32]} b5 {[%emt 0:02:09]} 23. Nf3 {[%emt 0:04:37]} a5 {[%emt 0:01:55]} 24. Rac1 {[%emt 0:04:59][%cal Ba1c1,Bc1c4,Bc4c6,Bc6c5][%mdl 32]} a4 {[%emt 0:07:44]} 25. c4 {[%emt 0:04:31]} bxc4 {[%emt 0:00:27]} 26. Rxc4 {[%emt 0:00:07]} a3 {[%emt 0:00:15]} 27. bxa3 {[%emt 0:01:09]} Rxa3 {[%emt 0:00:31]} 28. Ne5 {[%emt 0:08:46] Inhibits Qg6.} Rxa2 {[%emt 0:13:01]} 29. Rxc6 {[%emt 0:04:40]} Qd8 {[%emt 0:00:12]} 30. Ng4 $36 {[%emt 0:05:57][%cal Og4h6][%mdl 2048] Hoping for Nxh6+! Black is under strong pressure. &Bianco is more active.} Qg5 {[%emt 0:21:57]} (30... Ra5 $16 {might work better.} 31. Rec1 h5) 31. Rc5 $18 {[%emt 0:07:17]} Rd8 {[%emt 0:00:26]} (31... Nf6 32. Rxg5 Nxe4 33. Nxh6+ Kh7 34. Rxe4 Kxh6) 32. Qf3 {[%emt 0:05:59]} h5 {[%emt 0:05:53] [#]} (32... Qd2 $142 33. Re5 Ra5 34. Rexd5 Rxd5) 33. Ne3 $1 {[%emt 0:00:37]} Qf6 {[%emt 0:00:53]} 34. Nf5 {[%emt 0:04:17]} Nb4 {[%emt 0:01:01]} 35. Ne7+ {[%emt 0:00:20] Weighted Error Value: White=0.08 (flawless) /Black=0.64} 1-0

[Event "Italian-ch Teams-B 2022"]
[Site "Montesilvano"]
[Date "2022.04.22"]
[Round "5.4"]
[White "Schacher, Gerd"]
[Black "Luciani, Valerio"]
[Result "1-0"]
[ECO "A30"]
[WhiteElo "2246"]
[BlackElo "2151"]
[Annotator "TA"]
[PlyCount "75"]
[EventDate "2022.04.19"]
[EventType "team-tourn"]
[EventCountry "ITA"]
[SourceTitle "playchess.com"]
[Source "ChessBase"]
[SourceQuality "1"]
[TimeControl "40/5400+30:1800+30"]

{[%evp 12,75,25,20,15,20,17,11,53,50,50,44,43,52,49,65,48,44,44,51,47,31,23,20,31,-19,32,35,38,40,40,47,46,34,37,48,42,28,52,29,35,39,80,89,126,126,126,126,146,129,179,169,160,156,228,227,268,262,313,227,467,433,449,442,432,410]} 1. c4 {[%emt 0:00:09]} Nf6 {[%emt 0:00:12]} 2. Nf3 {[%emt 0:01:01]} b6 {[%emt 0:03:34]} 3. g3 {[%emt 0:00:36]} e6 {[%emt 0:01:24]} 4. Bg2 {[%emt 0:01:00]} Bb7 {[%emt 0:00:09]} 5. O-O {[%emt 0:01:03]} Be7 {[%emt 0:00:26]} 6. Re1 {[%emt 0:03:51]} c5 {[%emt 0:05:50]} 7. Nc3 {[%emt 0:01:20]} d5 {[%emt 0:02:53] Inhibits e4. A30: Symmetrical English: Double Fianchetto and Hedgehog.} 8. cxd5 {[%emt 0:04:28]} exd5 {[%emt 0:00:30]} 9. d4 {[%emt 0:00:48]} Nbd7 {[%emt 0:02:28] The position is equal.} 10. Nh4 {[%emt 0:29:44] [#]} cxd4 $146 {[%emt 0:25:58]} ({Predecessor:} 10... O-O 11. dxc5 Nxc5 12. Nf5 Re8 13. Nxe7+ Rxe7 14. Nb5 Qd7 15. Nd4 Rae8 16. e3 Ba6 {0-1 (59) De Mello,A (1862)-Santos,R (1540) Curitiba 2017}) 11. Nb5 {[%emt 0:03:35] Hoping for Bf4.} O-O {[%emt 0:05:45]} 12. Nf5 {[%emt 0:02:48]} Nc5 {[%emt 0:02:56]} 13. Bf4 {[%emt 0:07:25]} Ne8 {[%emt 0:06:17]} 14. Nbxd4 {[%emt 0:07:29][%cal Og2d5]} Bf6 {[%emt 0:01:59]} 15. Rc1 {[%emt 0:01:58]} Ne6 {[%emt 0:07:42]} 16. Be3 {[%emt 0:05:46]} Nd6 {[%emt 0:06:36]} 17. Qd2 {[%emt 0:10:49]} Qd7 {[%emt 0:06:39]} 18. b3 {[%emt 0:04:36]} (18. Nxd6 $14 Qxd6 19. h4) 18... Rfd8 {[%emt 0:05:29]} ({Better is} 18... Nxf5 $11 19. Nxf5 d4) 19. Nxd6 $14 {[%emt 0:02:23]} Qxd6 {[%emt 0:00:05]} 20. Red1 {[%emt 0:01:11]} Rd7 {[%emt 0:06:47]} 21. Bf3 {[%emt 0:02:04]} Re8 {[%emt 0:02:56]} 22. Nb5 {[%emt 0:01:17]} Qb8 {[%emt 0:00:14]} 23. Bd4 {[%emt 0:00:43]} Be7 {[%emt 0:02:33]} 24. Bg4 {[%emt 0:01:44]} Bf8 {[%emt 0:00:38]} 25. e3 {[%emt 0:01:17]} (25. Bb2 {is interesting.} d4 26. Nxd4 Bc5 27. Bxe6 Rxe6 28. Qc2) 25... Rdd8 {[%emt 0:01:41]} 26. Qb2 {[%emt 0:00:40] [#] Strongly threatening Be5.} f6 {[%emt 0:00:55] Inhibits Be5.} 27. b4 {[%emt 0:01:36][%cal Bb3b4,Bb4b5][%mdl 32]} Kf7 {[%emt 0:00:30]} 28. a4 {[%emt 0:01:23]} a6 {[%emt 0:00:34]} 29. Nc3 {[%emt 0:00:11] &Bianco is much more active.} (29. Bxb6 $6 axb5 30. Bxd8 Qxd8 $11) 29... Ba8 {[%emt 0:00:12]} 30. Ne2 {[%emt 0:00:55]} Qd6 {[%emt 0:00:42]} (30... Bd6 $16 31. b5 Nxd4 32. Nxd4 axb5) 31. b5 $18 {[%emt 0:00:52]} a5 {[%emt 0:00:10]} 32. Nf4 {[%emt 0:00:50]} Nxf4 {[%emt 0:01:12]} (32... Nxd4 $16 33. Qxd4 Re4) 33. gxf4 {[%emt 0:00:02]} Re7 {[%emt 0:00:20]} 34. Rd2 {[%emt 0:00:38]} Rc7 {[%emt 0:00:22]} 35. Rdc2 {[%emt 0:00:29] Against Rc4} Rxc2 {[%emt 0:00:33] [#]} (35... Rc4 36. Rxc4 dxc4) 36. Qxc2 {[%emt 0:00:03] White is clearly winning.} ({Weaker is} 36. Rxc2 Re8 37. Qb3 Re7 $16) 36... g6 {[%emt 0:00:40]} 37. Qc7+ {[%emt 0:00:09]} Be7 {[%emt 0:00:34]} 38. Qxb6 {[%emt 0:00:51] Weighted Error Value: White=0.07 (flawless) /Black=0.25 (precise)} ({Don't play} 38. Bxb6 f5 39. Bd1 Rd7 40. Qxd6 Bxd6 41. Bxa5 d4 42. Bb3+ Kf6 $18) 1-0

[Event "Italian-ch Teams-B 2022"]
[Site "Montesilvano"]
[Date "2022.04.22"]
[Round "5.4"]
[White "Brociner, Beniamino"]
[Black "Altini, Nicola"]
[Result "0-1"]
[ECO "A07"]
[WhiteElo "2155"]
[BlackElo "2403"]
[Annotator "TA"]
[PlyCount "124"]
[EventDate "2022.04.19"]
[EventType "team-tourn"]
[EventCountry "ITA"]
[SourceTitle "playchess.com"]
[Source "ChessBase"]
[SourceQuality "1"]
[TimeControl "40/5400+30:1800+30"]

{[%evp 9,124,0,0,4,2,7,9,-6,0,-2,11,0,0,0,0,0,53,49,49,51,77,72,62,64,66,66,87,79,93,85,109,97,114,101,114,102,95,86,109,116,108,99,85,91,93,0,68,68,68,0,68,61,55,60,89,68,68,68,132,133,101,68,99,79,175,67,66,66,66,65,57,55,64,-13,-21,-176,-176,-577,-131,-127,-123,-120,-64,-221,-217,-504,-437,-443,-434,-502,-427,-500,-493,-531,-520,-520,-510,-467,-457,-462,-443,-451,-343,-515,-483,-648,-626,-983,-842,-915,-899,-29988,-29989,-29989,-29990,-29992,-29993]} 1. Nf3 {[%emt 0:00:04]} d5 {[%emt 0:04:00]} 2. g3 {[%emt 0:00:16]} Bg4 {[%emt 0:00:37]} 3. Bg2 {[%emt 0:00:05]} Nd7 {[%emt 0:00:04]} 4. c4 {[%emt 0:04:26]} e6 {[%emt 0:00:04]} 5. Qa4 {[%emt 0:08:09]} Bxf3 {[%emt 0:07:18]} 6. Bxf3 {[%emt 0:00:08] A07: Réti Opening: New York and Capablanca Systems.} c6 {[%emt 0:00:02]} 7. cxd5 {[%emt 0:00:33]} exd5 {[%emt 0:08:01]} 8. Nc3 {[%emt 0:01:27] [#] The position is equal.} Nc5 $146 {[%emt 0:04:21]} ({Predecessor:} 8... Ngf6 9. d3 Be7 10. Bf4 O-O 11. O-O Nc5 12. Qc2 Ne6 13. Bd2 Nd4 14. Qb1 Nxf3+ 15. exf3 {½-½ (15) Kornilov,P (2114)-Chuprikov,D (2419) Borisoglebsk 2009}) 9. Qd1 {[%emt 0:12:01]} d4 {[%emt 0:06:50]} 10. Ne4 {[%emt 0:00:52]} Nxe4 {[%emt 0:00:35]} 11. Bxe4 {[%emt 0:00:10]} Nf6 {[%emt 0:00:02]} 12. Bg2 {[%emt 0:13:05]} d3 {[%emt 0:11:31]} (12... Qd7 $11) 13. e3 $14 {[%emt 0:13:58]} Qd7 {[%emt 0:06:35]} 14. b3 {[%emt 0:06:40]} g6 {[%emt 0:13:08]} 15. Bb2 {[%emt 0:01:01]} Bg7 {[%emt 0:00:04]} 16. Rc1 {[%emt 0:02:57]} O-O {[%emt 0:02:03]} 17. Rc4 {[%emt 0:04:26]} Rad8 {[%emt 0:05:43]} 18. Qa1 {[%emt 0:02:34]} Nh5 {[%emt 0:02:46]} 19. O-O {[%emt 0:02:55]} Rfe8 {[%emt 0:03:08]} 20. Rfc1 {[%emt 0:01:03]} Bxb2 {[%emt 0:05:39]} 21. Qxb2 {[%emt 0:00:12]} Ng7 {[%emt 0:01:01]} 22. Qc3 {[%emt 0:05:45]} Ne6 {[%emt 0:01:18]} 23. b4 {[%emt 0:00:30]} Qd6 {[%emt 0:01:54]} 24. a4 {[%emt 0:01:42]} a6 {[%emt 0:02:07]} 25. Qb3 {[%emt 0:01:45]} Re7 {[%emt 0:01:08]} 26. h4 {[%emt 0:02:48]} Qe5 {[%emt 0:01:42]} 27. R1c3 {[%emt 0:01:54]} (27. Rb1 $16) 27... Red7 {[%emt 0:00:31]} (27... Nd4 $1 $11 28. Rxd4 Rxd4) 28. Bh3 {[%emt 0:04:10]} Rd5 {[%emt 0:01:49]} 29. Bg2 {[%emt 0:00:35]} (29. Qb1 $14) 29... R5d6 {[%emt 0:01:29]} (29... R5d7 $11) 30. Qa3 {[%emt 0:04:13]} Qf5 {[%emt 0:02:36]} 31. Rb3 {[%emt 0:00:54]} h5 {[%emt 0:01:15]} 32. Qc1 {[%emt 0:02:55]} Nc7 {[%emt 0:02:56]} 33. Qb1 {[%emt 0:02:03]} Ne6 {[%emt 0:03:00]} (33... Qe6 $14 34. Re4 Qf6) 34. Be4 $16 {[%emt 0:00:23]} Qe5 {[%emt 0:00:51]} 35. Rxd3 {[%emt 0:00:36]} (35. Bxd3 Rd5 $14) 35... Rxd3 {[%emt 0:00:38]} 36. Bxd3 {[%emt 0:00:01]} a5 {[%emt 0:00:26] [#]} (36... Qd5 $16 {keeps fighting.} 37. Rc3 Kg7) 37. bxa5 {[%emt 0:01:06]} (37. Re4 $1 $18 {[%cal Re4e5]} Qd5 38. Bc4 Qxd2 39. bxa5 (39. Bxe6 Qd1+ 40. Qxd1 Rxd1+ 41. Kg2 fxe6 $16)) 37... Qxa5 $14 {[%emt 0:00:39]} 38. Rc3 {[%emt 0:00:31]} ({Of course not} 38. Bxg6 fxg6 39. Qxg6+ Ng7 $11) 38... Qxa4 {[%emt 0:00:28]} 39. Kg2 {[%emt 0:00:31]} (39. Qxb7 {keeps more tension.} Qd1+ 40. Kg2 Qxd2 41. Qb3) 39... Rd7 {[%emt 0:00:47]} 40. Rb3 {[%emt 0:00:34]} b5 {[%emt 0:00:40]} 41. Rb4 {[%emt 0:17:10]} ({Better is} 41. Rb2 $1 $14) 41... Qa3 $11 {[%emt 0:17:10]} 42. Be4 {[%emt 0:07:45]} (42. Rb3 $11 Qd6 43. Be4) 42... Rxd2 $19 {[%emt 0:03:47]} 43. Bxg6 $2 {[%emt 0:00:42]} (43. Rb3 {is more resistant.} Qd6 44. Rd3 Rxd3 45. Bxd3) 43... fxg6 $2 {[%emt 0:05:52]} (43... Qxe3 $1 $19 {and Black stays clearly on top.} 44. Qf5 fxg6 45. Qxg6+ Kf8 46. Qf6+ Ke8) 44. Qxg6+ $17 {[%emt 0:00:03]} Ng7 {[%emt 0:00:04]} 45. Rf4 {[%emt 0:00:23] [#]} Qd6 {[%emt 0:02:06]} (45... Rd6 $1 $17 {[%cal Rd6g6]} 46. Qf7+ Kh7) 46. Qf7+ {[%emt 0:00:40]} (46. Rf6 $1 $15 Qe7 47. Rxc6) 46... Kh7 $19 {[%emt 0:00:12] Threatens to win with ...Qe6.} ({Avoid the trap} 46... Kh8 $2 47. Rf6 Qd5+ 48. Qxd5 cxd5 49. Rb6) 47. e4 $2 {[%emt 0:01:05]} (47. Rf6 {only move.} Qd5+ 48. Qxd5 cxd5 49. Rc6) 47... Qg6 {[%emt 0:00:28]} 48. Qe7 {[%emt 0:00:29]} Qe6 {[%emt 0:00:56]} 49. Qf8 {[%emt 0:00:34]} Rd7 {[%emt 0:00:42]} 50. Qc5 {[%emt 0:02:23]} Rb7 {[%emt 0:01:24] Hoping for ...b4.} 51. Qc2 {[%emt 0:02:09]} Kg8 {[%emt 0:00:50]} 52. e5 {[%emt 0:01:37]} Rf7 {[%emt 0:00:48] Inhibits Rf6.} 53. Rd4 {[%emt 0:00:28]} Nf5 {[%emt 0:01:13]} 54. Rd8+ {[%emt 0:00:32]} Rf8 {[%emt 0:00:20]} 55. Rd3 {[%emt 0:00:33]} Ne7 {[%emt 0:00:46]} 56. f4 {[%emt 0:00:19]} (56. Qe2 $142 Qc4 57. Kg1) 56... Ra8 {[%emt 0:00:19] aiming for ...Ra2.} 57. Rd2 {[%emt 0:00:33]} Nd5 {[%emt 0:00:33] ( -> ...Ne3+)} 58. Qc5 {[%emt 0:00:15] Prevents Ne3+.} b4 {[%emt 0:00:22]} 59. f5 {[%emt 0:00:36]} Qxf5 {[%emt 0:00:39]} 60. Qxc6 {[%emt 0:00:17]} Ne3+ {[%emt 0:00:10] Black mates.} 61. Kh2 {[%emt 0:00:37]} Rf8 {[%emt 0:00:32]} 62. Re2 {[%emt 0:00:28]} Ng4+ {[%emt 0:00:08] Weighted Error Value: White=0.47/Black=0.31} 0-1

[Event "Italian-ch Teams-B 2022"]
[Site "Montesilvano"]
[Date "2022.04.22"]
[Round "5.4"]
[White "Pasini, Nicolo"]
[Black "Lapiccirella, Daniele"]
[Result "1/2-1/2"]
[ECO "B48"]
[WhiteElo "2150"]
[BlackElo "2180"]
[Annotator "TA"]
[PlyCount "47"]
[EventDate "2022.04.19"]
[EventType "team-tourn"]
[EventCountry "ITA"]
[SourceTitle "playchess.com"]
[Source "ChessBase"]
[SourceQuality "1"]
[TimeControl "40/5400+30:1800+30"]

{[%evp 11,47,29,42,0,8,0,0,-23,26,10,43,-31,89,89,156,120,114,32,115,108,107,72,166,158,164,93,85,29,79,33,35,31,20,0,4,8,7,-32]} 1. e4 {[%emt 0:00:03]} c5 {[%emt 0:00:08]} 2. Nc3 {[%emt 0:00:28]} e6 {[%emt 0:00:08]} 3. Nge2 {[%emt 0:00:05]} Nc6 {[%emt 0:00:09]} 4. d4 {[%emt 0:00:06]} cxd4 {[%emt 0:00:07]} 5. Nxd4 {[%emt 0:00:07]} Qc7 {[%emt 0:00:08]} 6. Be3 {[%emt 0:00:04]} a6 {[%emt 0:00:12]} 7. g4 {[%emt 0:00:05] Nowadays more popular than 7.Qd2. B48: Sicilian: Taimanov: 5 Nc3 Qc7 6 Be3 a6 without Be2.} b5 {[%emt 0:12:37]} 8. Nxc6 {[%emt 0:00:31]} Qxc6 {[%emt 0:08:19]} 9. Qd2 {[%emt 0:00:18] [#]} Bb4 $146 {[%emt 0:09:16]} (9... b4 $142 10. Ne2 Qxe4) ({Predecessor:} 9... b4 10. Ne2 Qxe4 11. Rg1 Qc4 12. Ng3 Qc7 13. O-O-O Ne7 14. Nh5 Nd5 15. Bd4 Rg8 {½-½ (51) Esipenko,A (2714)-Shankland,S (2708) Wijk aan Zee 2022}) 10. O-O-O {[%emt 0:00:41]} Ne7 {[%emt 0:00:08]} (10... Bxc3 $5 11. bxc3 (11. Qxc3 Qxc3 12. bxc3 Bb7 $11) 11... Bb7 $14) 11. g5 {[%emt 0:21:04]} ({White should play} 11. Bd4 $14) 11... d5 {[%emt 0:09:52] [#]} (11... Bxc3 $15 {keeps the upper hand.} 12. Qxc3 Qxc3 13. bxc3 Bb7) 12. Bd4 $1 $16 {[%emt 0:03:45]} Rg8 {[%emt 0:01:46]} (12... Bb7 $142) 13. Bg2 {[%emt 0:09:52] Strongly threatening exd5.} Bb7 {[%emt 0:00:12][%cal Rd5e4]} 14. Qd3 {[%emt 0:04:33] &Bianco is more active.} ({Better is} 14. a3 $16 Bd6 15. exd5) 14... Bxc3 {[%emt 0:02:06]} (14... Qc4 $14) 15. Bxc3 {[%emt 0:00:10] aiming for exd5.} O-O-O {[%emt 0:00:12][%cal Rd5e4]} 16. exd5 {[%emt 0:00:55]} Nxd5 {[%emt 0:00:05]} (16... Qc7 $16) 17. Ba5 $18 {[%emt 0:02:27]} ({Don't take} 17. Qxh7 $6 Qc4 $14) 17... Rde8 {[%emt 0:01:02] [#]} 18. Qxh7 {[%emt 0:17:50]} (18. Qg3 $1 $18) 18... Qc4 $16 {[%emt 0:00:58]} 19. b3 {[%emt 0:15:52]} (19. a3 $16) 19... Qf4+ {[%emt 0:02:03]} ({Don't play} 19... Qg4 20. Rhg1 Qf4+ 21. Kb1 $16) (19... Qc5 $11 20. Bd2 Qxf2) 20. Bd2 {[%emt 0:02:13] A strong pair of Bishops.} (20. Kb1 $16) 20... Qxf2 $14 {[%emt 0:01:37]} 21. Qe4 {[%emt 0:01:34]} f5 {[%emt 0:00:04]} 22. Qf3 {[%emt 0:02:50] The position is equal.} Qxf3 {[%emt 0:06:40]} 23. Bxf3 {[%emt 0:00:06]} e5 {[%emt 0:00:07]} 24. Bg2 {[%emt 0:06:05] Weighted Error Value: White=0.37/Black=0.37} (24. Rhf1 $5 {[%cal Rf3d5]}) 1/2-1/2